bitfinex/quotes_ETHUSD_20250210
["timestamp","ask_amount","ask_price","bid_price","bid_amount"]
[1739168372011,3.79377,2635.9,2635.7,3.34810597]
[1739168372328,7.58766,2635.9,2635.7,3.34810597]
[1739168372526,3.79391,2635.8,2635.7,3.34810597]
[1739168373939,3.79366,2636.0,2635.7,3.34810597]
[1739168374579,7.58741,2636.0,2635.7,3.34810597]
[1739168374780,3.79366,2636.0,2635.7,3.34810597]
[1739168374987,3.79382,2635.9,2635.7,3.34810597]
[1739168375485,3.79366,2636.0,2635.7,3.34810597]
[1739168375732,3.79391,2635.8,2635.7,3.34810597]
[1739168376086,3.79366,2636.0,2635.7,3.34810597]
[1739168376287,4.60868,2636.2,2635.7,3.34810597]
[1739168376543,3.79338,2636.2,2635.8,0.8162]
[1739168377231,3.79308,2636.4,2635.8,0.8162]
[1739168377440,3.79324,2636.3,2636.0,3.34810597]
[1739168377640,3.79308,2636.4,2636.0,3.34810597]
[1739168377853,3.7933,2636.3,2636.0,3.34810597]
[1739168378341,3.79348,2636.1,2635.8,0.8162]
[1739168379319,3.79334,2636.2,2635.8,0.8162]
[1739168379630,6.79321,2636.3,2636.0,3.34810597]
[1739168379925,3.79335,2636.2,2636.0,3.34810597]
[1739168380090,6.79327,2636.3,2636.0,3.34810597]
[1739168380695,3.79327,2636.3,2636.0,3.34810597]
[1739168382017,4.5908,2636.4,2635.7,3.34810597]
[1739168382018,3.79391,2635.8,2635.7,3.34810597]
[1739168382329,3.79418,2635.7,2635.4,3.34810597]
[1739168382529,3.0,2636.2,2635.4,7.14246597]
[1739168382693,3.79358,2636.1,2635.8,0.7597]
[1739168383112,3.79364,2636.0,2635.8,0.7597]
[1739168383299,3.79358,2636.1,2635.8,0.7597]
[1739168383500,3.79371,2636.0,2635.8,0.7597]
[1739168384012,3.79377,2635.9,2635.8,0.7597]
[1739168385207,3.79358,2636.1,2635.8,0.7597]
[1739168385412,3.79365,2636.0,2635.8,0.7597]
[1739168385622,3.79358,2636.1,2635.8,0.7597]
[1739168386233,7.58719,2636.1,2635.8,0.7597]
[1739168386613,3.79358,2636.1,2635.8,0.7597]
[1739168387010,7.58717,2636.1,2635.8,0.7597]
[1739168387217,3.79358,2636.1,2635.8,0.7597]
[1739168387938,3.79386,2635.9,2635.7,3.34810597]
[1739168388104,3.79391,2635.8,2635.7,3.34810597]
[1739168388299,3.79386,2635.9,2635.7,3.34810597]
[1739168388805,3.79391,2635.8,2635.7,3.34810597]
[1739168389205,3.79386,2635.9,2635.7,3.34810597]
[1739168389536,3.79548,2634.8,2634.4,3.34810597]
[1739168389736,3.79499,2635.1,2634.5,0.7597]
[1739168389923,3.79499,2635.1,2634.7,3.34810597]
[1739168390334,3.79509,2635.0,2634.7,3.34810597]
[1739168390818,3.79524,2634.9,2634.7,3.34810597]
[1739168391807,0.763,2635.5,2634.7,3.34810597]
[1739168392006,3.79428,2635.6,2635.3,3.34810597]
[1739168392210,3.0,2635.6,2635.3,3.34810597]
[1739168392410,3.79415,2635.7,2635.3,4.18000597]
[1739168392749,3.79399,2635.8,2635.3,4.18000597]
[1739168392908,3.79407,2635.7,2635.3,4.18000597]
[1739168395340,3.79378,2635.9,2635.3,4.18000597]
[1739168395639,3.79398,2635.8,2635.3,4.18000597]
[1739168396949,3.0,2635.9,2635.4,3.79446]
[1739168397342,3.0,2635.9,2635.6,3.34810597]
[1739168397912,3.79382,2635.9,2635.6,3.34810597]
[1739168398142,3.79382,2635.9,2635.3,4.18000597]
[1739168398346,3.79391,2635.8,2635.3,4.18000597]
[1739168398970,3.0,2635.9,2635.4,3.79436]
[1739168399125,3.79365,2636.0,2635.4,3.79436]
[1739168399850,3.79377,2635.9,2635.4,3.79436]
[1739168400047,3.79365,2636.0,2635.4,3.79436]
[1739168400255,3.79352,2636.1,2635.7,0.8256]
[1739168401051,3.79335,2636.2,2635.7,0.8256]
[1739168401222,3.79377,2635.9,2635.4,0.8256]
[1739168401419,4.56765,2635.9,2635.4,0.8256]
[1739168401737,3.7942,2635.6,2635.3,3.34810597]
[1739168402319,5.32,2636.3,2635.5,3.34810597]
[1739168402519,0.7738,2636.2,2635.8,3.34810597]
[1739168402751,3.79351,2636.1,2635.8,3.34810597]
[1739168403167,3.79349,2636.1,2635.8,3.34810597]
[1739168403466,3.79337,2636.2,2635.8,3.34810597]
[1739168403714,6.79311,2636.4,2635.8,3.34810597]
[1739168403831,3.79358,2636.1,2635.9,0.8256]
[1739168404765,3.79359,2636.1,2635.9,0.8256]
[1739168404919,6.79313,2636.4,2635.9,0.8256]
[1739168405126,3.79336,2636.2,2635.9,0.8256]
[1739168405326,6.79313,2636.4,2635.9,0.8256]
[1739168405558,3.79319,2636.3,2635.9,0.8256]
[1739168406208,6.79313,2636.4,2635.9,0.8256]
[1739168406326,10.58631,2636.4,2635.9,0.8256]
[1739168406524,6.79313,2636.4,2635.9,0.8256]
[1739168406835,5.32,2636.5,2636.1,3.34810597]
[1739168407173,3.79253,2636.8,2636.2,4.61714]
[1739168407334,7.58512,2636.8,2636.4,3.34810597]
[1739168407861,3.79253,2636.8,2636.4,3.34810597]
[1739168408026,3.7928,2636.6,2636.4,3.34810597]
[1739168408221,3.7928,2636.6,2636.2,0.8239]
[1739168408427,3.79319,2636.3,2636.1,3.34810597]
[1739168408646,3.79306,2636.4,2636.0,0.8239]
[1739168408861,3.793,2636.5,2636.0,0.8239]
[1739168409470,3.79321,2636.3,2636.0,0.8239]
[1739168409955,3.79319,2636.3,2636.0,0.8239]
[1739168411281,3.0,2636.4,2636.0,0.8239]
[1739168411479,7.58598,2636.5,2636.0,0.8239]
[1739168411687,3.0,2636.6,2636.1,3.34810597]
[1739168411988,3.0,2636.6,2636.2,4.61722]
[1739168412363,3.79271,2636.7,2636.2,4.61722]
[1739168413967,3.79277,2636.6,2636.2,0.8239]
[1739168414384,3.79271,2636.7,2636.2,0.8239]
[1739168414758,5.32,2636.9,2636.2,4.61712]
[1739168415465,3.79218,2637.0,2636.4,7.14103597]
[1739168415664,6.79217,2637.1,2636.5,0.8239]
[1739168415865,3.79218,2637.0,2636.5,0.8239]
[1739168416053,6.79217,2637.1,2636.5,4.61679]
[1739168416260,10.58432,2637.1,2636.5,4.61679]
[1739168416491,6.79215,2637.1,2636.5,4.61679]
[1739168416688,6.79215,2637.1,2636.7,3.34810597]
[1739168416989,6.79214,2637.1,2636.7,3.34810597]
[1739168417296,3.79241,2636.9,2636.5,0.8239]
[1739168418190,3.7922,2637.0,2636.5,0.8239]
[1739168418570,3.7922,2637.0,2636.5,4.6168]
[1739168418764,6.79214,2637.1,2636.5,4.6168]
[1739168418995,3.79162,2637.4,2637.0,3.34810597]
[1739168419164,2.08698621,2637.5,2637.0,3.34810597]
[1739168419165,5.06945621,2637.5,2637.0,3.34810597]
[1739168419712,3.79204,2637.1,2636.9,0.8239]
[1739168420196,3.79256,2636.8,2636.4,4.17200597]
[1739168420796,3.79264,2636.7,2636.4,4.17200597]
[1739168421088,3.79246,2636.9,2636.4,4.17200597]
[1739168421295,3.79217,2637.1,2636.5,3.79289]
[1739168421465,3.79216,2637.1,2636.8,0.8239]
[1739168421665,3.7922,2637.0,2636.8,0.8239]
[1739168422093,3.79205,2637.1,2636.8,0.8239]
[1739168422404,7.5842,2637.1,2636.8,0.8239]
[1739168422562,3.79227,2637.0,2636.8,0.8239]
[1739168422986,3.79227,2637.0,2636.7,3.34810597]
[1739168424098,3.79205,2637.1,2636.7,3.34810597]
[1739168424301,3.79191,2637.2,2636.7,7.14068597]
[1739168424802,9.11171,2637.4,2637.0,3.34810597]
[1739168425104,3.79176,2637.3,2637.0,3.34810597]
[1739168425286,5.81963621,2637.5,2637.0,3.34810597]
[1739168425287,5.81963621,2637.5,2637.1,0.7624]
[1739168426065,1.27788621,2637.5,2637.1,4.55439]
[1739168426508,1.27788621,2637.5,2637.1,0.7624]
[1739168427608,1.27788621,2637.5,2637.3,3.34810597]
[1739168428307,1.27788621,2637.5,2637.4,4.55401]
[1739168428519,1.27788621,2637.5,2637.4,0.7624]
[1739168431054,1.27788621,2637.5,2637.1,0.7624]
[1739168431364,3.79174,2637.4,2637.0,3.34810597]
[1739168431523,1.27788621,2637.5,2637.3,3.34810597]
[1739168431704,1.27788621,2637.5,2637.3,7.13977597]
[1739168431909,1.27788621,2637.5,2637.4,0.7624]
[1739168432407,1.27788621,2637.5,2637.4,0.84472341]
[1739168432843,1.27788621,2637.5,2637.4,0.08232341]
[1739168435027,1.27788621,2637.5,2637.4,3.87393341]
[1739168437865,4.55946,2637.5,2637.4,0.08232341]
[1739168438261,3.79133,2637.6,2637.3,3.34810597]
[1739168438462,3.79109,2637.8,2637.4,0.07575941]
[1739168438660,3.79123,2637.7,2637.4,0.07575941]
[1739168439067,7.58225,2637.8,2637.4,0.07575941]
[1739168439267,3.79123,2637.7,2637.4,0.07575941]
[1739168440167,3.79104,2637.8,2637.4,0.07575941]
[1739168440555,4.5589,2637.9,2637.4,0.90835941]
[1739168440751,4.55867,2638.1,2637.4,4.69994941]
[1739168440940,3.79077,2638.0,2637.5,3.79144]
[1739168441148,4.55867,2638.1,2637.6,3.42104412]
[1739168441379,8.3494,2638.1,2637.6,3.42104412]
[1739168441583,4.55867,2638.1,2637.6,3.42104412]
[1739168441759,8.3494,2638.1,2637.6,3.42104412]
[1739168441965,4.55867,2638.1,2637.6,3.42104412]
[1739168442273,7.5814,2638.1,2637.6,3.42104412]
[1739168442463,7.58136,2638.1,2637.6,3.42104412]
[1739168442659,3.79067,2638.1,2637.6,3.42104412]
[1739168442865,7.58138,2638.1,2637.6,3.42104412]
[1739168443282,3.79067,2638.1,2637.6,3.42104412]
[1739168444366,3.79084,2638.0,2637.6,3.42104412]
[1739168445109,3.005,2638.4,2637.6,0.07293815]
[1739168445110,3.79118,2637.7,2637.6,0.07293815]
[1739168445495,7.58245,2637.7,2637.4,0.8326]
[1739168445697,7.58245,2637.7,2637.6,0.0729047]
[1739168445883,3.79118,2637.7,2637.5,0.07298832]
[1739168446087,3.79118,2637.7,2637.4,0.8326]
[1739168446262,3.79118,2637.7,2637.6,0.07298832]
[1739168446467,3.79155,2637.5,2637.1,0.8326]
[1739168447365,3.79134,2637.6,2637.1,0.8326]
[1739168447794,0.768,2637.9,2637.1,0.8326]
[1739168447983,3.79156,2637.5,2637.1,0.8326]
[1739168448388,7.58314,2637.5,2637.1,0.8326]
[1739168448603,7.58313,2637.5,2637.1,0.8326]
[1739168448984,8.35113,2637.5,2637.0,3.34810597]
[1739168449184,4.55956,2637.5,2637.0,7.14028597]
[1739168449586,3.79127,2637.7,2637.1,3.79203]
[1739168449782,3.79137,2637.6,2637.1,3.79203]
[1739168451438,3.79111,2637.8,2637.3,3.34810597]
[1739168451732,3.79093,2637.9,2637.3,7.13980597]
[1739168452091,7.58192,2637.9,2637.3,7.13980597]
[1739168452651,3.79093,2637.9,2637.4,0.796]
[1739168452842,7.58192,2637.9,2637.4,0.796]
[1739168453650,3.79093,2637.9,2637.4,0.796]
[1739168453807,1.56876266,2638.2,2637.3,3.34810597]
[1739168453808,3.79146,2637.5,2637.3,3.34810597]
[1739168453991,3.79146,2637.5,2637.1,0.796]
[1739168455593,10.251239,2637.5,2637.1,0.796]
[1739168456037,3.79172,2637.4,2637.1,0.796]
[1739168456232,3.792,2637.2,2636.9,0.796]
[1739168456525,3.79169,2637.4,2636.9,0.796]
[1739168456526,3.79188,2637.3,2636.9,0.796]
[1739168456709,3.7919,2637.2,2636.9,0.796]
[1739168458741,3.79212,2637.1,2636.7,4.14410597]
[1739168458945,3.79212,2637.1,2637.0,0.07364905]
[1739168459143,3.79212,2637.1,2636.7,4.14410597]
[1739168459604,3.79212,2637.1,2636.8,0.07369925]
[1739168459994,0.7966,2637.3,2636.8,0.07369925]
[1739168460323,3.79181,2637.3,2636.8,0.07369925]
[1739168460495,3.79195,2637.2,2636.8,0.07369925]
[1739168461426,3.79213,2637.1,2636.8,0.07369925]
[1739168461820,3.79233,2636.9,2636.8,0.07369925]
[1739168462397,3.79249,2636.8,2636.4,4.14410597]
[1739168462597,4.58879,2637.0,2636.8,0.07395018]
[1739168462796,3.79234,2636.9,2636.4,4.14410597]
[1739168463198,3.7925,2636.8,2636.4,4.14410597]
[1739168463795,3.79279,2636.6,2636.2,6.046]
[1739168464952,3.79236,2636.9,2636.4,3.34810597]
[1739168465250,3.79236,2636.9,2636.5,0.796]
[1739168465656,3.7925,2636.8,2636.5,0.796]
[1739168467338,3.79247,2636.9,2636.5,0.796]
[1739168467645,3.79225,2637.0,2636.5,0.796]
[1739168467806,3.79248,2636.8,2636.5,0.796]
[1739168468445,3.79233,2636.9,2636.5,0.796]
[1739168468611,3.79225,2637.0,2636.5,0.796]
[1739168468805,4.58857,2637.2,2636.7,3.34810597]
[1739168469018,3.79197,2637.2,2636.7,3.34810597]
[1739168469349,3.79218,2637.0,2636.7,3.34810597]
[1739168470422,3.79206,2637.1,2636.7,3.34810597]
[1739168470767,3.79197,2637.2,2636.7,3.34810597]
[1739168470923,4.56395,2636.9,2636.4,3.34810597]
[1739168471244,3.79264,2636.7,2636.4,3.34810597]
[1739168471695,4.56386,2636.9,2636.1,4.16160597]
[1739168471875,3.79299,2636.5,2636.1,4.16160597]
[1739168472887,3.79298,2636.5,2636.1,4.16160597]
[1739168473698,7.58598,2636.5,2636.1,4.16160597]
[1739168473900,3.79298,2636.5,2636.2,0.0746363]
[1739168474068,3.79305,2636.4,2636.2,0.0746363]
[1739168474410,3.79298,2636.5,2636.2,0.0746363]
[1739168474713,7.58597,2636.5,2636.2,0.0746363]
[1739168475196,3.79298,2636.5,2636.2,0.0746363]
[1739168475417,3.79319,2636.3,2636.2,0.0746363]
[1739168476007,3.79298,2636.5,2636.2,0.0746363]
[1739168476495,7.58598,2636.5,2636.2,0.0746363]
[1739168476697,3.79307,2636.4,2636.2,0.0746363]
[1739168477787,4.56469,2636.3,2636.2,0.0746363]
[1739168478424,3.79276,2636.6,2636.2,0.0746363]
[1739168478625,0.7715,2637.4,2636.5,0.8135]
[1739168478831,6.459779,2637.5,2637.3,3.79174]
[1739168478994,6.459779,2637.5,2637.4,3.79161]
[1739168479195,6.459779,2637.5,2637.4,4.56671]
[1739168479410,6.459779,2637.5,2637.4,0.84960239]
[1739168480824,6.459779,2637.5,2637.4,4.64121239]
[1739168481909,6.459779,2637.5,2637.4,0.84960239]
[1739168483426,6.459779,2637.5,2637.4,4.64121239]
[1739168485997,6.459779,2637.5,2637.4,7.64121239]
[1739168486397,0.005,2638.4,2638.1,0.7751]
[1739168486597,0.005,2638.4,2638.3,3.34810597]
[1739168487219,0.005,2638.4,2638.3,3.42114449]
[1739168487532,3.79517,2638.4,2638.3,0.07303852]
[1739168487734,4.57527,2638.4,2638.3,0.07303852]
[1739168487949,3.79064,2638.1,2637.7,3.34810597]
[1739168488318,3.79064,2638.1,2637.8,0.07288802]
[1739168488627,3.79519,2638.4,2638.0,4.12320597]
[1739168489227,3.79519,2638.4,2638.1,0.07288802]
[1739168489423,0.005,2638.4,2638.1,0.07288802]
[1739168489740,3.79046,2638.2,2638.1,0.07288802]
[1739168490033,3.79034,2638.3,2638.1,0.07288802]
[1739168490736,0.005,2638.4,2638.1,0.07288802]
[1739168490942,3.79046,2638.2,2638.1,0.07288802]
[1739168491329,3.79045,2638.3,2638.1,0.07288802]
[1739168492340,0.7851,2638.4,2638.1,0.07288802]
[1739168492507,3.79517,2638.4,2638.1,0.07288802]
[1739168493652,3.79046,2638.2,2638.1,0.07288802]
[1739168493807,4.57056,2638.2,2638.1,0.07288802]
[1739168494345,3.79077,2638.0,2637.7,3.34810597]
[1739168495107,3.79072,2638.1,2637.7,3.34810597]
[1739168495308,0.005,2638.4,2638.3,3.79031]
[1739168495520,0.005,2638.4,2638.3,7.91351597]
[1739168497651,0.005,2638.4,2638.3,7.13841597]
[1739168497820,0.005,2638.4,2638.0,3.34810597]
[1739168498535,3.79034,2638.3,2638.0,3.34810597]
[1739168499120,0.005,2638.4,2638.0,3.34810597]
[1739168499825,3.7952,2638.4,2638.0,3.34810597]
[1739168500027,0.005,2638.4,2638.0,3.34810597]
[1739168500223,3.79044,2638.3,2638.0,3.34810597]
[1739168500627,3.79522,2638.4,2638.0,3.34810597]
[1739168502844,0.005,2638.4,2638.0,3.34810597]
[1739168503051,3.79518,2638.4,2638.0,3.34810597]
[1739168503749,0.005,2638.4,2638.0,7.13882597]
[1739168503949,3.79521,2638.4,2638.1,0.06924544]
[1739168504147,3.79033,2638.3,2638.1,0.06924544]
[1739168506569,0.005,2638.4,2638.1,0.06924544]
[1739168506857,3.7952,2638.4,2638.1,0.06924544]
[1739168507035,0.005,2638.4,2638.1,0.06924544]
[1739168507425,3.79526,2638.4,2638.1,0.06924544]
[1739168507945,0.833,2638.2,2638.1,0.06924544]
[1739168508251,3.79065,2638.1,2637.7,4.13330597]
[1739168508619,3.79065,2638.1,2637.7,3.34810597]
[1739168512873,0.833,2638.2,2637.4,4.13800597]
[1739168513076,7.58227,2637.8,2637.4,4.13800597]
[1739168513275,3.79112,2637.8,2637.4,4.13800597]
[1739168514169,3.7908,2638.0,2637.4,4.13800597]
[1739168514479,3.7908,2638.0,2637.4,7.92953597]
[1739168514645,3.7908,2638.0,2637.4,4.13800597]
[1739168514846,3.79095,2637.9,2637.4,4.13800597]
[1739168515171,3.7908,2638.0,2637.4,4.13800597]
[1739168515374,3.79105,2637.8,2637.4,4.13800597]
[1739168516438,3.79093,2637.9,2637.4,7.92961597]
[1739168517283,3.79093,2637.9,2637.4,4.13800597]
[1739168517476,4.62347,2638.2,2637.4,4.13800597]
[1739168517779,4.62347,2638.2,2637.7,7.13919597]
[1739168517983,4.62347,2638.2,2637.7,3.34810597]
[1739168518878,3.79063,2638.1,2637.8,0.0627032]
[1739168519056,3.79063,2638.1,2637.7,3.34810597]
[1739168519239,3.79063,2638.1,2637.9,0.0627032]
[1739168519444,3.79063,2638.1,2637.7,3.34810597]
[1739168519669,3.79063,2638.1,2638.0,0.0627032]
[1739168519873,3.79063,2638.1,2637.7,3.34810597]
[1739168520078,3.79063,2638.1,2638.0,0.0627032]
[1739168520275,8.41405,2638.2,2637.7,3.34810597]
[1739168520477,8.41405,2638.2,2638.0,0.0627032]
[1739168520678,8.41405,2638.2,2637.7,3.34810597]
[1739168520679,0.833,2638.2,2637.7,3.34810597]
[1739168520879,4.61332,2638.4,2638.1,0.0627032]
[1739168521185,8.40362,2638.4,2637.8,4.54365]
[1739168521361,4.61332,2638.4,2638.2,0.06305395]
[1739168521566,3.79047,2638.2,2637.8,0.7527]
[1739168521757,4.61332,2638.4,2637.8,0.7527]
[1739168522085,0.005,2638.4,2638.3,3.34810597]
[1739168522251,0.005,2638.4,2638.3,7.89111597]
[1739168522950,0.005,2638.4,2638.3,4.10080597]
[1739168523775,0.005,2638.4,2638.3,7.89111597]
[1739168523978,0.005,2638.4,2638.3,4.10080597]
[1739168524352,0.005,2638.4,2638.3,7.89111597]
[1739168530555,0.005,2638.4,2638.3,3.34810597]
[1739168530788,0.005,2638.4,2638.3,7.13841597]
[1739168531158,0.005,2638.4,2638.3,7.92221597]
[1739168532469,0.005,2638.4,2638.3,10.92221597]
[1739168532671,0.04999608,2638.8,2638.7,4.57354]
[1739168532871,0.04999608,2638.8,2638.7,7.92164597]
[1739168533283,0.04999608,2638.8,2638.7,3.34810597]
[1739168533464,3.83959608,2638.8,2638.4,3.34810597]
[1739168533873,0.04999608,2638.8,2638.5,0.05910419]
[1739168535296,3.78987,2638.7,2638.5,0.05910419]
[1739168535590,0.04999608,2638.8,2638.5,0.05910419]
[1739168536981,3.83962608,2638.8,2638.5,0.05910419]
[1739168539599,3.78988,2638.6,2638.5,0.05910419]
[1739168539783,4.61878,2638.6,2638.5,0.05910419]
[1739168540181,3.79016,2638.5,2638.1,3.34810597]
[1739168540382,4.61878,2638.6,2638.1,3.34810597]
[1739168541403,3.79005,2638.5,2638.1,3.34810597]
[1739168542105,3.79004,2638.5,2638.1,3.34810597]
[1739168542311,3.7904,2638.3,2638.1,3.34810597]
[1739168542804,3.79019,2638.4,2638.1,3.34810597]
[1739168543013,4.56058,2638.2,2637.8,3.34810597]
[1739168543210,3.79068,2638.1,2637.5,3.34810597]
[1739168543617,3.79098,2637.9,2637.5,3.34810597]
[1739168543930,3.79114,2637.8,2637.5,3.34810597]
[1739168544107,3.79156,2637.5,2637.2,3.34810597]
[1739168544517,7.58317,2637.5,2637.2,3.34810597]
[1739168544720,3.79156,2637.5,2637.2,3.34810597]
[1739168544930,3.7917,2637.4,2637.2,3.34810597]
[1739168545536,3.7917,2637.4,2636.9,3.34810597]
[1739168545537,4.56175,2637.3,2636.9,3.34810597]
[1739168545818,0.77,2637.3,2636.9,3.34810597]
[1739168546527,0.55,2638.1,2637.5,3.79146]
[1739168546528,0.77,2638.1,2637.5,3.79146]
[1739168546735,0.77,2638.1,2637.9,3.34810597]
[1739168547095,4.56011,2638.5,2637.9,3.34810597]
[1739168547412,4.56011,2638.5,2637.8,3.791]
[1739168547413,0.77,2638.5,2638.2,3.34810597]
[1739168547980,3.79026,2638.4,2638.2,3.34810597]
[1739168548174,7.58056,2638.4,2638.2,3.34810597]
[1739168548380,3.79031,2638.3,2638.2,3.34810597]
[1739168548582,3.79031,2638.3,2637.9,3.34810597]
[1739168548891,3.79031,2638.3,2638.0,0.05263431]
[1739168549094,0.77,2638.5,2638.0,0.05263431]
[1739168549428,3.79042,2638.3,2638.0,0.05263431]
[1739168550827,3.79048,2638.2,2638.0,0.05263431]
[1739168551426,3.7906,2638.1,2638.0,0.05263431]
[1739168551586,4.5606,2638.1,2638.0,0.05263431]
[1739168552922,3.79048,2638.2,2638.0,0.05263431]
[1739168553632,3.7906,2638.1,2638.0,0.05263431]
[1739168554146,3.79048,2638.2,2638.0,0.05263431]
[1739168554494,7.58105,2638.2,2638.0,0.05263431]
[1739168555090,3.79048,2638.2,2638.0,0.05263431]
[1739168555812,3.7906,2638.1,2638.0,0.05263431]
[1739168559234,3.79048,2638.2,2638.0,0.05263431]
[1739168559418,3.7906,2638.1,2638.0,0.05263431]
[1739168560930,3.79046,2638.2,2638.0,0.05263431]
[1739168562129,3.7906,2638.1,2638.0,0.05263431]
[1739168562497,4.6143,2638.1,2638.0,0.05263431]
[1739168562698,3.79106,2637.8,2637.6,3.34810597]
[1739168563941,3.79106,2637.8,2637.7,0.05318449]
[1739168564432,4.61476,2637.8,2637.7,0.05318449]
[1739168564637,3.79126,2637.7,2637.3,3.34810597]
[1739168565212,3.79134,2637.6,2637.3,3.34810597]
[1739168565832,3.79161,2637.4,2637.3,3.34810597]
[1739168567126,3.79147,2637.5,2637.3,3.34810597]
[1739168567322,3.79161,2637.4,2637.3,3.34810597]
[1739168567702,3.79108,2637.8,2637.3,3.34810597]
[1739168567907,3.79141,2637.6,2637.3,3.34810597]
[1739168568212,3.79161,2637.4,2637.3,3.34810597]
[1739168569239,4.61517,2637.5,2637.3,3.34810597]
[1739168569534,3.79161,2637.4,2637.3,3.34810597]
[1739168571016,3.79176,2637.3,2637.0,3.34810597]
[1739168571434,3.79192,2637.2,2637.0,3.34810597]
[1739168571742,3.7919,2637.2,2637.0,3.34810597]
[1739168572626,3.79176,2637.3,2637.0,3.34810597]
[1739168572820,7.58361,2637.3,2637.0,3.34810597]
[1739168573536,3.79176,2637.3,2637.0,3.34810597]
[1739168573743,7.58362,2637.3,2637.0,3.34810597]
[1739168574037,3.79191,2637.2,2637.0,3.34810597]
[1739168574214,7.58362,2637.3,2637.0,3.34810597]
[1739168574747,3.79176,2637.3,2637.0,3.34810597]
[1739168574930,7.58362,2637.3,2637.0,3.34810597]
[1739168575247,3.79176,2637.3,2637.0,3.34810597]
[1739168576721,7.58361,2637.3,2637.0,3.34810597]
[1739168576920,3.8111,2637.7,2637.1,0.7978]
[1739168577110,3.79176,2637.3,2637.1,0.7978]
[1739168578032,7.5836,2637.3,2637.1,0.7978]
[1739168578229,3.79176,2637.3,2637.1,0.7978]
[1739168578914,7.5836,2637.3,2637.2,0.05399354]
[1739168579115,3.79176,2637.3,2637.2,0.05399354]
[1739168579311,3.79157,2637.5,2637.2,0.05399354]
[1739168579647,6.7912,2637.7,2637.4,3.34810597]
[1739168580026,3.79143,2637.6,2637.4,3.34810597]
[1739168580227,3.79132,2637.6,2637.5,0.05399354]
[1739168582764,3.7912,2637.7,2637.5,0.05399354]
[1739168583116,7.58248,2637.7,2637.5,0.05399354]
[1739168583547,3.7912,2637.7,2637.5,0.05399354]
[1739168583860,3.79132,2637.6,2637.5,0.05399354]
[1739168584340,3.79166,2637.4,2637.1,4.14590597]
[1739168585149,7.58336,2637.4,2637.1,4.14590597]
[1739168585348,3.79166,2637.4,2637.1,4.14590597]
[1739168585552,3.7914,2637.6,2637.1,4.14590597]
[1739168585763,3.79131,2637.7,2637.5,3.34810597]
[1739168587547,3.79132,2637.6,2637.5,3.34810597]
[1739168590074,3.79077,2638.0,2637.5,4.13460597]
[1739168590281,3.79089,2637.9,2637.8,3.34810597]
[1739168590662,3.79132,2637.6,2637.5,3.34810597]
[1739168590859,4.3568,2637.8,2636.3,0.1906283]
[1739168590860,3.79276,2636.6,2636.5,3.34810597]
[1739168591061,3.79305,2636.4,2636.2,3.34810597]
[1739168591262,3.79319,2636.3,2636.2,3.34810597]
[1739168591773,3.79362,2636.0,2635.9,3.34810597]
[1739168591981,3.79362,2636.0,2635.9,3.39320108]
[1739168592547,3.79362,2636.0,2635.9,0.04509511]
[1739168592746,0.8068,2636.3,2635.6,3.34810597]
[1739168592971,3.79405,2635.7,2635.6,3.34810597]
[1739168593653,3.7939,2635.9,2635.6,3.34810597]
[1739168594077,3.79391,2635.8,2635.7,0.04391]
[1739168594379,3.7939,2635.9,2635.7,0.04391]
[1739168595380,0.8068,2636.6,2635.8,0.7865]
[1739168595550,4.59901,2637.0,2636.5,3.34810597]
[1739168595757,3.79261,2636.8,2636.5,3.34810597]
[1739168595953,0.8068,2637.0,2636.5,3.34810597]
[1739168596155,3.79273,2636.7,2636.6,0.04391]
[1739168596645,3.79255,2636.8,2636.6,0.04391]
[1739168598057,0.8068,2637.0,2636.6,0.04391]
[1739168598378,3.79229,2637.0,2636.9,3.34810597]
[1739168598583,3.79191,2637.2,2636.9,3.34810597]
[1739168598752,7.58394,2637.2,2636.9,3.39201597]
[1739168598957,3.79218,2637.0,2636.9,3.39201597]
[1739168600560,3.79207,2637.1,2636.9,3.39201597]
[1739168601693,3.79191,2637.2,2636.9,3.39201597]
[1739168601875,3.79218,2637.0,2636.9,3.39201597]
[1739168602099,3.79191,2637.2,2636.9,3.39201597]
[1739168602248,3.79218,2637.0,2636.9,3.39201597]
[1739168602648,4.59178,2637.0,2636.9,0.04391]
[1739168602898,3.79261,2636.7,2636.3,3.34810597]
[1739168603104,3.79305,2636.4,2636.3,3.34810597]
[1739168604798,3.79342,2636.2,2636.0,3.34810597]
[1739168604996,3.79348,2636.1,2636.0,3.72790597]
[1739168605163,3.79348,2636.1,2636.0,3.34810597]
[1739168607771,3.79342,2636.2,2636.0,3.34810597]
[1739168608571,3.7931,2636.4,2636.0,3.34810597]
[1739168608802,3.79328,2636.3,2636.0,3.34810597]
[1739168608994,3.7931,2636.4,2636.0,3.34810597]
[1739168608995,3.79335,2636.2,2636.1,0.0444101]
[1739168609194,0.7996,2636.8,2636.2,0.8297]
[1739168609383,3.79228,2637.0,2636.7,3.34810597]
[1739168609588,3.79247,2636.8,2636.7,3.34810597]
[1739168610507,0.7996,2637.1,2636.7,3.34810597]
[1739168610684,3.79242,2636.9,2636.7,3.34810597]
[1739168611020,3.79247,2636.8,2636.7,3.34810597]
[1739168611820,3.79281,2636.6,2636.4,3.34810597]
[1739168612022,0.7996,2637.1,2636.4,3.34810597]
[1739168612193,0.7996,2637.4,2637.0,3.34810597]
[1739168612521,3.792,2637.2,2637.0,3.34810597]
[1739168612813,4.59124,2637.4,2637.0,3.34810597]
[1739168613214,6.79133,2637.6,2637.3,3.34810597]
[1739168613215,7.58277,2637.6,2637.3,3.34810597]
[1739168613415,3.79118,2637.7,2637.3,3.34810597]
[1739168613619,3.7915,2637.5,2637.3,3.34810597]
[1739168613783,3.79118,2637.7,2637.3,4.17780597]
[1739168614103,3.79104,2637.8,2637.6,3.34810597]
[1739168614417,3.79093,2637.9,2637.6,3.34810597]
[1739168615282,3.79065,2638.1,2637.6,3.34810597]
[1739168615819,3.79091,2637.9,2637.6,3.34810597]